Cogmind - Beta 13 @@@ ROGUE MODE // 2024.04.01 @ 19:55:43 Player: Sixten Result: Destroyed by Heavy Explosive Trap Performance ------------- Evolutions (3) 1500 Regions Visited (6) 1200 Robots Destroyed (70) 350 Value Destroyed (1542) 1542 Prototype IDs (27) 540 Alien Tech Used (0) 0 Bonus (337) 337 TOTAL SCORE: 5469 Bonus ------- High Alert Combat Kills 37 Aligned with FarCom 300 Cogmind --------- Core Integrity 0/700 Matter 260/300 Energy 59/100 System Corruption 1% Temperature Cool (0) Movement Core (50) Location -7/Factory Parts ------- > --- POWER (2) -------- (None) > --- PROPULSION (4) --- (None) > --- UTILITY (5) ------ Advanced Weight Redist. System > --- WEAPON (2) ------- (None) > --- INVENTORY (5) ---- Reflective Plating Precision Shock Rifle Improved Assault Rifle Proton Missile Launcher Peak State ------------ > --- POWER ------------ Ion Engine > --- PROPULSION ------- Titanium Leg Titanium Leg Wheel Wheel > --- UTILITY ---------- Large Storage Unit Modified TNC Improved Medium Armor Plating Improved Medium Armor Plating > --- WEAPON ----------- Precision Shock Rifle Spear > --- INVENTORY -------- Light Ion Engine Aluminum Leg Improved Titanium Leg Xenon Bombardment Thruster Small Storage Unit Advanced Terrain Scan Processor Recalibrator Precision Shock Rifle Small Laser Light Assault Rifle Proton Missile Launcher Mining Laser Spear [Rating: 36] Favorites ----------- Power Cooled Ion Engine Engine Cooled Ion Engine Propulsion Aluminum Leg Leg Aluminum Leg Wheel Wheel Flight Unit VTOL Module Utility Large Storage Unit Device Structural Scanner Storage Large Storage Unit Processor Terrain Scan Processor Protection Hardened Medium Armor Plating Weapon Light Assault Rifle Energy Gun Precision Shock Rifle Ballistic Gun Light Assault Rifle Launcher Proton Missile Launcher Impact Weapon Heavy Mace Piercing Weapon Spear Build | -11 -10 -10 -10 -9 -8 -7 ------- Run | Yrd Mat Min Exi Min Mat Fac Slots Evolved 6 | . . . . . 4 2 Power 1 | . . . . . . 1 Propulsion 2 | . . . . . 2 . Utility 3 | . . . . . 2 1 Weapon . | . . . . . . . Parts Attached 49 | 5 4 2 1 . 28 9 Power 4 | 1 . . . . 2 1 Engine 4 | 1 . . . . 2 1 Core . | . . . . . . . Reactor . | . . . . . . . Propulsion 16 | 2 . 2 . . 7 5 Treads . | . . . . . . . Leg 10 | 2 . . . . 7 1 Wheel 2 | . . 2 . . . . Hover . | . . . . . . . Flight 4 | . . . . . . 4 Utility 14 | 1 1 . 1 . 8 3 Device 3 | . . . . . 1 2 Storage 2 | 1 1 . . . . . Processor 2 | . . . 1 . 1 . Hackware . | . . . . . . . Protection 7 | . . . . . 6 1 Artifact . | . . . . . . . Weapon 15 | 1 3 . . . 11 . Energy Gun 6 | . 1 . . . 5 . Energy Cannon . | . . . . . . . Ballistic Gun 5 | 1 2 . . . 2 . Ballistic Cannon . | . . . . . . . Launcher 1 | . . . . . 1 . Special Weapon . | . . . . . . . Impact Weapon 1 | . . . . . 1 . Slashing Weapon . | . . . . . . . Piercing Weapon 2 | . . . . . 2 . Special Melee Weapon . | . . . . . . . Unidentified Prototypes 4 | . . . . . 4 . Parts Lost 21 | . 1 . . . 10 10 Power 3 | . . . . . 1 2 Propulsion 9 | . 1 . . . 4 4 Utility 6 | . . . . . 4 2 Weapon 3 | . . . . . 1 2 Highest Loss Streak 8 | . 1 . . . 3 8 To Critical Strikes . | . . . . . . . Average Slot Usage (%) 90 | . 85 99 100 100 91 64 Engine 10 | . 14 14 14 14 8 12 Leg 19 | . 19 . . . 27 . Wheel 5 | . . 26 28 28 2 . Flight 1 | . . . . . . 19 Device 4 | . . . . . 5 15 Storage 13 | . 23 28 21 14 9 1 Processor 2 | . . . 6 14 2 . Protection 10 | . . . . . 17 1 Energy Gun 5 | . . . . . 8 6 Ballistic Gun 10 | . 27 28 28 28 1 . Impact Weapon 2 | . . . . . 3 6 Piercing Weapon 1 | . . . . . 3 . Naked Turns . | . . . . . . . Heaviest Build 52 | 11 32 32 32 27 52 40 Greatest Support 64 | 20 20 20 20 20 64 25 Greatest Overweight (x) 13 | . 3 3 1 1 2 13 Average Overweight (x) . | . 1 1 1 1 . . Largest Inventory Capacity 15 | 8 15 15 15 15 15 15 Average Capacity 13 | 7 12 15 15 15 15 6 Most Carried 15 | 3 2 4 5 10 15 15 Average Carried 9 | 1 1 3 4 8 14 5 Final Capacity 15 | 8 15 15 15 15 15 5 Final Carried 15 | 2 2 4 5 10 15 4 Class Distribution -------------------- 95% | Mutant Dominant Class ---------------- Mutant | -10/Materials Mutant | -10/Mines Mutant | -10/Exiles Mutant | -9/Mines Mutant | -8/Materials Sprinter | -7/Factory Resources | -11 -10 -10 -10 -9 -8 -7 ----------- Run | Yrd Mat Min Exi Min Mat Fac Matter Collected 739 | 244 76 35 . 57 327 . Remotely . | . . . . . . . Salvage Created 2315 | . 135 45 . 10 2038 87 Parts 145 | . 11 6 . 2 122 4 Haulers Intercepted 3 | . . . . . 3 . Recyclers Shooed 5 | . . . . . 5 . Parts Field Recycled . | . . . . . . . Retrieved Matter . | . . . . . . . Parts Self-Destructed . | . . . . . . . Prevented . | . . . . . . . Kills | -11 -10 -10 -10 -9 -8 -7 ------- Run | Yrd Mat Min Exi Min Mat Fac Combat Hostiles Destroyed 46 | . 7 . . 1 35 3 Guns 30 | . 7 . . 1 19 3 AOE 10 | . . . . . 10 . Classes Destroyed 10 | . 2 1 . . 7 . Worker 10 | . . 2 . . 8 . Builder 4 | . . . . . 4 . Hauler 3 | . . . . . 3 . Recycler 1 | . . . . . 1 . Operator 2 | . . . . . 2 . Watcher 4 | . . . . . 4 . Swarmer 23 | . 6 . . 1 13 3 Grunt 16 | . 1 . . . 15 . Sentry 6 | . . . . . 6 . Hunter 1 | . . . . . 1 . Best Kill Streak 5 | . 4 2 . 1 5 2 Combat Bots Only 5 | . 4 . . 1 5 2 Max Kills in Single Turn 2 | . 2 1 . 1 2 1 Gunslinging 1 | . 1 . . . . . Exploded 2 | . . . . . 2 . Melee . | . . . . . . . Uniques/NPCs Destroyed . | . . . . . . . Combat | -11 -10 -10 -10 -9 -8 -7 -------- Run | Yrd Mat Min Exi Min Mat Fac Hostile Shots Fired 524 | . 64 . . 6 237 217 Missed 183 | . 13 . . 1 65 104 Damage Taken 4058 | . 434 . . 36 2418 1170 Core 1105 | . 139 . . 30 226 710 Absorbed by Shields 77 | . . . . . . 77 Ignored by Resistances 52 | . . . . . 52 . Core Remaining (%) 63 | 100 . . . 32 58 . Volleys Fired 198 | . 25 2 . 5 151 15 Largest 2 | . 2 2 . 1 2 1 Hottest 94 | . 60 40 . 20 94 55 Shots Fired 245 | . 46 5 . 5 174 15 Gun 236 | . 46 5 . 5 165 15 Cannon . | . . . . . . . Launcher 9 | . . . . . 9 . Special . | . . . . . . . Kinetic 70 | . 40 5 . 5 20 . Thermal 6 | . 6 . . . . . Explosive . | . . . . . . . Electromagnetic 169 | . . . . . 154 15 Robot Hit Streak 20 | . 6 6 . 3 20 4 Robot Miss Streak 5 | . 5 . . 2 2 2 Penetration Max . | . . . . . . . Secondary Targets 4 | . 3 . . . 1 . Max Gunslinging Chain 1 | . 1 . . . 1 . Shots Hit Robots 169 | . 20 4 . 3 132 10 Core Hits 91 | . 12 3 . 1 69 6 Critical Kills . | . . . . . . . Critical Parts Destroyed 1 | . . . . . 1 . Critical Strikes 2 | . . . . . 2 . Corrupt 1 | . . . . . 1 . Smash 1 | . . . . . 1 . Melee Attacks 25 | . . . . . 21 4 Impact 14 | . . . . . 10 4 Slashing . | . . . . . . . Piercing 11 | . . . . . 11 . Sneak Attacks 6 | . . . . . 6 . Combat Hostiles . | . . . . . . . Follow-up Attacks . | . . . . . . . Damage Inflicted 4582 | . 220 36 . 27 4124 175 Guns 2793 | . 214 36 . 27 2353 163 Cannons . | . . . . . . . Explosions 1120 | . . . . . 1120 . Melee 582 | . . . . . 582 . Ramming 87 | . 6 . . . 69 12 Kinetic 359 | . 180 36 . 27 116 . Thermal 774 | . 34 . . . 740 . Explosive . | . . . . . . . Electromagnetic 2780 | . . . . . 2617 163 Impact 561 | . . . . . 561 . Slashing . | . . . . . . . Piercing 21 | . . . . . 21 . Highest Corruption 4 | . 4 4 4 4 . 1 Average Corruption 3 | . 3 4 4 4 . 1 Corruption Purged . | . . . . . . . Corruption Blocked . | . . . . . . . Effects 24 | . 6 9 8 1 . . Message Errors 1 | . . 1 . . . . Matter Fused 7 | . 3 2 2 . . . Heat Flow Errors 4 | . 1 . 2 1 . . Energy Discharges 4 | . . 2 2 . . . Parts Fused 1 | . . 1 . . . . Data Loss (minor) 2 | . . 1 1 . . . Data Loss (major) 2 | . 1 1 . . . . Misfires 1 | . . 1 . . . . Alerts 2 | . 1 . 1 . . . Overload Shots . | . . . . . . . Overflow Damage 277 | . . . . . 277 . Projectiles . | . . . . . . . Explosions 40 | . . . . . 40 . Melee 237 | . . . . . 237 . Knockbacks 2 | . . . . . 2 . Impact 2 | . . . . . 2 . Kinetic . | . . . . . . . Secondary . | . . . . . . . Self-Inflicted Damage 234 | . . . . . 222 12 Shots 7 | . . . . . 7 . Rammed . | . . . . . . . Targets Rammed 14 | . 1 . . . 13 . Kicked 14 | . 1 . . . 13 . Crushed . | . . . . . . . Highest Temperature 373 | . 169 . 264 129 373 160 Average Temperature 92 | . 38 . 119 69 96 80 Received Heat Transfer 1125 | . 48 . . . 963 114 Effects 7 | . . . 1 . 6 . Interference 7 | . . . 1 . 6 . Siege Activations . | . . . . . . . Robots Corrupted 6 | . . . . . 6 . Combat Hostiles 6 | . . . . . 6 . Parts Fried 20 | . . . . . 17 3 Impact Corruptions 6 | . . . . . 6 . Robots Melted . | . . . . . . . Combat Hostiles . | . . . . . . . Parts Melted 1 | . . . . . 1 . Heat Transferred 975 | . 75 . . . 900 . Parts Sabotaged . | . . . . . . . Parts Stolen . | . . . . . . . Parts Stripped . | . . . . . . . Power Chain Reactions 8 | . . . . . 8 . Alert | -11 -10 -10 -10 -9 -8 -7 ------- Run | Yrd Mat Min Exi Min Mat Fac Peak Influence 512 | . 130 10 . 45 512 346 Initial 217 | . . . . . 17 217 Average 217 | . 62 9 . 4 301 276 Maximum Alert Level 2 | . . . . . 2 1 Low Security (%) 39 | 100 100 100 . 100 12 . Level 1 53 | . . . . . 77 100 Level 2 6 | . . . . . 10 . Level 3 . | . . . . . . . Level 4 . | . . . . . . . Level 5 . | . . . . . . . High Security . | . . . . . . . Max Security . | . . . . . . . Squads Dispatched 10 | . 1 . . 1 5 3 Investigation 3 | . . . . 1 2 . Extermination . | . . . . . . . Reinforcement 4 | . 1 . . . 3 . Assault . | . . . . . . . Garrison 3 | . . . . . . 3 Intercept . | . . . . . . . Searches Triggered . | . . . . . . . Construction Impeded . | . . . . . . . Haulers Reinforced . | . . . . . . . Active Scanning Responses . | . . . . . . . Cargo Convoy Interrupts . | . . . . . . . Stealth | -11 -10 -10 -10 -9 -8 -7 --------- Run | Yrd Mat Min Exi Min Mat Fac Distress Signals 7 | . . . . . 6 1 Communications Jammed . | . . . . . . . Distress Signals . | . . . . . . . Times Spotted 92 | . 17 . . 1 61 13 Peak Tracking Total 8 | . 5 . . 1 6 8 Tactical Retreats 4 | . . . . . 2 2 Traps | -11 -10 -10 -10 -9 -8 -7 ------- Run | Yrd Mat Min Exi Min Mat Fac Traps Triggered 8 | . 2 . . . 1 5 Indirectly . | . . . . . . . Trap Hack Attempts . | . . . . . . . Triggered . | . . . . . . . Disarmed . | . . . . . . . Reprogrammed . | . . . . . . . Reused . | . . . . . . . Traps Extracted . | . . . . . . . Installed . | . . . . . . . Triggered . | . . . . . . . Machines | -11 -10 -10 -10 -9 -8 -7 ---------- Run | Yrd Mat Min Exi Min Mat Fac Machines Disabled 2 | . . . . . 1 1 Max in Single Turn 1 | . . . . . 1 1 Machines Repaired . | . . . . . . . Machines Dismantled . | . . . . . . . Machines Sabotaged . | . . . . . . . Overloaded Fab Kills . | . . . . . . . Hacking | -11 -10 -10 -10 -9 -8 -7 --------- Run | Yrd Mat Min Exi Min Mat Fac Machines Accessed 4 | . 2 . 1 1 . . Terminals 2 | . 2 . . . . . Fabricators . | . . . . . . . Repair Stations . | . . . . . . . Recycling Units . | . . . . . . . Scanalyzers . | . . . . . . . Garrison Access . | . . . . . . . Total Hacks 7 | . 5 . 1 1 . . Successful 5 | . 3 . 1 1 . . Failed 2 | . 2 . . . . . Catastrophic . | . . . . . . . Database Lockouts . | . . . . . . . Manual 3 | . 2 . 1 . . . Terminals 5 | . 5 . . . . . Fabricators . | . . . . . . . Repair Stations . | . . . . . . . Recycling Units . | . . . . . . . Scanalyzers . | . . . . . . . Garrison Access . | . . . . . . . Terminal Hacks 5 | . 3 . 1 1 . . Open Door 1 | . . . . 1 . . Dispatch Records 1 | . 1 . . . . . Transport Status 1 | . 1 . . . . . Investigation Status 1 | . 1 . . . . . Derelict Proto ID Bank 1 | . . . 1 . . . Fabricator Hacks . | . . . . . . . Repair Station Hacks . | . . . . . . . Recycling Unit Hacks . | . . . . . . . Scanalyzer . | . . . . . . . Garrison Access Hacks . | . . . . . . . Unauthorized Hacks . | . . . . . . . Terminals . | . . . . . . . Fabricators . | . . . . . . . Repair Stations . | . . . . . . . Recycling Units . | . . . . . . . Scanalyzers . | . . . . . . . Garrison Access . | . . . . . . . Data Cores Recovered . | . . . . . . . Used . | . . . . . . . Hacking Detections 1 | . 1 . . . . . Full Trace Events . | . . . . . . . Feedback Events . | . . . . . . . Feedback Blocked . | . . . . . . . Robot Schematics Acquired . | . . . . . . . Robots Built . | . . . . . . . Authchips . | . . . . . . . Time . | . . . . . . . Total Robot Build Rating . | . . . . . . . Part Schematics Acquired . | . . . . . . . Parts Built . | . . . . . . . Authchips . | . . . . . . . Time . | . . . . . . . Total Part Build Rating . | . . . . . . . Parts Repaired . | . . . . . . . Time . | . . . . . . . Parts Recycled . | . . . . . . . Recycled Matter . | . . . . . . . Retrieved Matter . | . . . . . . . Retrieved Components . | . . . . . . . Parts Scanalyzed . | . . . . . . . Part Schematics Acquired . | . . . . . . . Parts Damaged . | . . . . . . . Bothacking | -11 -10 -10 -10 -9 -8 -7 ------------ Run | Yrd Mat Min Exi Min Mat Fac Used RIF Installer . | . . . . . . . Robots Hacked . | . . . . . . . Non-combat . | . . . . . . . Combat . | . . . . . . . Robot Hacks Applied . | . . . . . . . Relay Couplers Released . | . . . . . . . Fabnet Peak Effective % . | . . . . . . . Robots Rewired . | . . . . . . . Allies Hacked . | . . . . . . . Hacks Repelled . | . . . . . . . Allies | -11 -10 -10 -10 -9 -8 -7 -------- Run | Yrd Mat Min Exi Min Mat Fac Total Allies 1 | . . 1 . . . . Largest Group 1 | . . 1 1 . . . Highest-Rated Group 31 | . . 31 31 . . . Highest-Rated Ally 31 | . . 31 31 . . . Total Orders . | . . . . . . . Ally Attacks . | . . . . . . . Total Damage . | . . . . . . . Kills . | . . . . . . . Allies Corrupted . | . . . . . . . Allies Melted . | . . . . . . . Intel | -11 -10 -10 -10 -9 -8 -7 ------- Run | Yrd Mat Min Exi Min Mat Fac Robot Analysis Total . | . . . . . . . Derelict Logs Recovered 2 | . . 2 . . . . Drone Launches . | . . . . . . . Drone Recoveries . | . . . . . . . Exploration | -11 -10 -10 -10 -9 -8 -7 ------------- Run | Yrd Mat Min Exi Min Mat Fac Turns Passed 5763 | 88 1172 387 382 88 3287 359 Spaces Moved 3844 | 69 525 390 400 65 1844 551 Core 36 | 9 . . . . . 27 Treads . | . . . . . . . Legs 2354 | 60 525 2 . . 1766 1 Wheels 931 | . . 388 400 65 78 . Hover . | . . . . . . . Flight 523 | . . . . . . 523 Fastest Speed 28 | 50 120 95 95 95 95 28 Average Speed 125 | 110 210 96 95 95 142 40 Slowest Speed 760 | 120 330 330 95 95 270 760 Overloaded Moves . | . . . . . . . Propulsion Burnouts . | . . . . . . . Robots Hopped . | . . . . . . . Cave-ins Triggered . | . . . . . . . Exploration Rate (%) 44 | 4 67 63 71 10 80 13 Regions Visited 6 Branch Regions 3 Pre-discovered Areas . | . . . . . . . Known Exits Taken 1 | . . . 1 . . . Unknown Exits Taken 5 | 1 1 1 . 1 1 . Scrap Searched . | . . . . . . . Spaces Dug 12 | . . . . . 8 4 Terrain Destroyed 33 | . . . . . 29 4 Melee 12 | . . . . . 8 4 Projectile . | . . . . . . . AOE 20 | . . . . . 20 . Terrain Rammed 3 | . . . . . 1 2 Walls Destroyed 1 | . . . . . 1 . Machines Disabled . | . . . . . . . Actions | -11 -10 -10 -10 -9 -8 -7 --------- Run | Yrd Mat Min Exi Min Mat Fac Total 4482 | 80 555 395 401 87 2296 668 Wait 234 | . . . . 13 195 26 Move 3838 | 68 524 389 399 64 1843 551 Hop . | . . . . . . . Pick Up 40 | 6 1 2 1 5 25 . Fast Attach 19 | 2 1 1 . . 12 3 Attach 15 | 3 1 . . . 5 6 Detach 5 | . . . . . 2 3 Swap 15 | . 2 1 1 . 11 . Drop 26 | 1 . . . . 17 8 Fire 198 | . 25 2 . 5 151 15 Melee 25 | . . . . . 21 4 Ram 3 | . . . . . 1 2 Kick 14 | . 1 . . . 13 . Crush . | . . . . . . . Escape Stasis 50 | . . . . . . 50 Rewire . | . . . . . . . Trap . | . . . . . . . Miscellaneous . | . . . . . . . Route ------- -11/Scrapyard -10/Materials (discovered 3 exits: [*Mat x2] / [*Min]) -10/Mines (discovered 2 exits: [*Mat] / *Exi) -10/Exiles (discovered 2 exits: *Min x2) -9/Mines -8/Materials (discovered 2 exits: *Fac x2) -7/Factory History --------- Turn | Location | Event 6 | -11/Scrapyard | Discovered new exit (range 16) 89 | -11/Scrapyard | Entered Materials 170 | -10/Materials | Discovered new exit (range 13) 302 | -10/Materials | Build established: Mutant 505 | -10/Materials | Discovered new exit (range 6) 563 | -10/Materials | Core integrity fell below 50% 819 | -10/Materials | Discovered new exit (range 8) 1261 | -10/Materials | Entered Mines 1296 | -10/Mines | Learned Materials terminal intel 1486 | -10/Mines | Received a Mining Laser from a helpful Derelict 1581 | -10/Mines | Discovered new exit (range 7) 1641 | -10/Mines | Deemed a non-threat by the Exiles lab entrance 1642 | -10/Mines | Discovered new exit (range 5) 1648 | -10/Mines | Entered Exiles 1648 | -10/Exiles | Accompanied by 1 ally 1649 | -10/Exiles | Identified exit to Mines 1706 | -10/Exiles | Met 8R-AWN 1727 | -10/Exiles | Met EX-HEX 1770 | -10/Exiles | Met EX-BIN 1793 | -10/Exiles | Aligned with FarCom system 1794 | -10/Exiles | Given EX-Vault access code 1822 | -10/Exiles | Opened EX-Vault 1835 | -10/Exiles | Found Modified TNC 1861 | -10/Exiles | Warned to stay clear of 0b10 Research branches 1895 | -10/Exiles | Met EX-DEC 2030 | -10/Exiles | Left Exiles lab with Modified TNC 2030 | -10/Exiles | Entered Mines 2039 | -9/Mines | Met a Derelict shopkeep closing up shop 2059 | -9/Mines | Met a Derelict bent on vengeance 2100 | -9/Mines | Discovered new exit (range 10) 2118 | -9/Mines | Entered Materials 2118 | -8/Materials | Evolved 4 slots: Propulsion x2, Utility x2 2119 | -8/Materials | Loaded intel: 11 terminal locations 2359 | -8/Materials | Lost 3 parts (1p1n1u) 3090 | -8/Materials | Discovered new exit (range 16) 3916 | -8/Materials | Discovered new exit (range 5) 5405 | -8/Materials | Entered Factory 5405 | -7/Factory | Evolved 2 slots: Power x1, Utility x1 5560 | -7/Factory | Garrison activated, responded to threat 5752 | -7/Factory | Core integrity fell below 50% 5760 | -7/Factory | Core integrity fell below 20% 5764 | -7/Factory | Destroyed by Heavy Explosive Trap Last Messages --------------- 05739_ Field strength at 68. 05740_ Field strength at 58. 05741_ Field strength at 44. 05742_ Field strength at 30. 05743_ Field strength at 20. 05744_ Field strength at 3. 05744_ Stasis field depleted. 05744_ U-05 Engineer lays Concrete. 05751_ VTOL Module destroyed. 05753_ Hvy. Mace destroyed. 05761_ Slammed into Wall. 05761_ Destabilizing: Core damaged (-14). 05761_ Destabilizing: System interference. 05761_ Adv. Weight Redist. System temporarily disabled. 05762_ Slammed into Wall. 05762_ Destabilizing: System corrupted (+1). 05762_ Destabilizing: Core damaged (-28). 05764_ Triggered Heavy Explosive Trap. 05764_ An explosion rips through the floor. Map ----- +----------------------------------------------------+ | ??" ##??#####+######??????????????????????????? | | ?"" ##??## ##??????????????????????????? | | """ ##??## """ ##??????????????????????????? | | ##??## """ ##??????????????????????????? | | """ ##??## """ ##??????????????????????????? | | """ ##??## ##??????????????????????????? | | """ ##??## """ ##??????????????????????????? | | """ ##??## R" ##??????????????????????????? | | ###?## """ ##??????????????????????????? | | ###### ##??????????????????????????? | | #######+####################?????????????? | | ###############?????????????? | | w # ##?????????????? | | " ##?????????????? | | ########## # [= ##?????????????? | | ####### # # [= ##?????????????? | | ####### ????? #T # ##?????????????? | | ##????? ????? ## # ##?????????????? | | ####?## ????? ## # = ##?????????????? | | ####?## ????? ## # ##?????????????? | | ""##?## """"" ## # #############??? | | ""##?## """"" ## # #############??? | | Y"##?## """ ## # ### ##??? | | ""##?## ## + ! ###"" ##??? | | ""##### ]]! ## ################"" ##??? | | ####### ]!! ## @ ######""" ! ##??? | | ## ]!! ## # #""" ##??? | | ## ## " """" # !! #""" ##??? | | ## = ## T """" # !! # ##??? | | #### ## ## " """" # ! # [ ##### | | #### ## ## + [# ##### | | ### ##+####### s# ########+## | | ### ############ # " | | Y + " | | ### """"""""" s ########### # " | | ### ### # #### ## | | #####+##### """"""""" s# ? ??#### ## = | | # s# ? ??#### ##### | | """""" # Y # ## ### | | """""" ! # ""T"" Y ####/##### ##? | | """""" # """" #### ##? | | """""" # #### "##? | | +* #### "" """"%##? | | ###########% ### #### "" """ " | | ######### *[ ### #### "T """ | | #??????## % ### "" | | #??????## ### "" | | ######### ### | | ######### ### | | ### ! | +----------------------------------------------------+ Best States ------------- Heat Dissipation 34 Energy Generation 23 Energy Capacity 320 Matter Stores 300 Matter Capacity 300 Sight Range 16 Terrain Scan Density 85 Additional Mass Support 9 Armor Coverage 600 Resistance: TH 10 Resistance: EM 15 Evasion (%) 72 Item Schematics ----------------- None Robot Schematics ------------------ None Fabricated ------------ Nothing Alien Tech Used ----------------- None Achievements -------------- Hey, That's Mine! Power Corrupts Challenges ------------ None Game ------ Seed SensorFlyingCanceller Manual? 0 Play Time 00:52:07 Cumulative 10.5 hours Start 2024.04.01 @ 18:40:40 End 2024.04.01 @ 19:55:43 Sessions 1 Manual Loads 0 Difficulty Rogue Special Mode None Game No. 47 Rogue 47 Adventurer 0 Explorer 0 Win Type - Total 0 Types 0/0/0/0/0/0/0/0/0 Lore% 9 Gallery% 14 Achievement% 14 Wizard Run 0 Options --------- Layout 1 ASCII 0 Keyboard 1 Movement Arrows Keybinds 0 Fullscreen 1 Font 24/Smallcaps Map View 50x35 Zoom Use 0% Tactical HUD 1 Map Filters NONE Filters NONE Steam 1 RUN: aab0f89c-1813-4503-8e19-2f611770c86b